bitfinex/quotes_BTCUSD_20220202
["timestamp","ask_amount","ask_price","bid_price","bid_amount"]
[1643812447150,0.28139542,37915.0,37902.0,8.337e-05]
[1643812447354,0.28139542,37915.0,37892.0,0.01975337]
[1643812447355,0.08490325,37902.0,37892.0,0.01783674]
[1643812447552,0.350369,37901.0,37889.0,0.14398558]
[1643812447754,0.24024861,37903.0,37878.0,0.8]
[1643812447755,0.01121825,37891.0,37878.0,0.78504]
[1643812447953,0.28139542,37900.0,37866.0,0.502]
[1643812447954,0.01121825,37883.0,37866.0,0.502]
[1643812448204,0.05,37882.0,37874.0,0.00134144]
[1643812448508,1.46025764,37844.0,37843.0,0.42]
[1643812448706,1.26025764,37844.0,37843.0,0.4]
[1643812449004,8.29e-06,37844.0,37843.0,1.01870368]
[1643812449206,0.0441,37854.0,37843.0,1.35636442]
[1643812449404,0.48650969,37876.0,37844.0,0.27503736]
[1643812449607,0.00621825,37869.0,37845.0,0.55632542]
[1643812449812,0.53060969,37876.0,37846.0,0.50632242]
[1643812450003,0.53060969,37876.0,37846.0,0.27139542]
[1643812450004,0.48650969,37876.0,37846.0,0.27139542]
[1643812450204,0.48650969,37876.0,37845.0,8.336e-05]
[1643812450205,0.00621825,37863.0,37845.0,8.336e-05]
[1643812450404,0.00621825,37863.0,37846.0,0.269017]
[1643812450602,0.00621825,37858.0,37847.0,0.50741542]
[1643812450803,0.25726626,37866.0,37848.0,0.269017]
[1643812451008,0.48536065,37876.0,37868.0,0.001]
[1643812451505,3.06001102,37895.0,37868.0,0.001]
[1643812451506,0.02018222,37874.0,37868.0,0.001]
[1643812451705,0.02018222,37874.0,37870.0,0.00042606]
[1643812451951,0.28791192,37890.0,37871.0,0.268846]
[1643812451952,0.25850204,37873.0,37871.0,0.268846]
[1643812452151,3.06001102,37895.0,37873.0,0.3201]
[1643812452152,0.00521825,37874.0,37873.0,0.3201]
[1643812452349,0.00521825,37877.0,37873.0,0.244832]
[1643812452550,0.1,37898.0,37873.0,0.244832]
[1643812452551,0.00531626,37892.0,37874.0,0.50611942]
[1643812452751,0.00522805,37892.0,37875.0,0.268806]
[1643812452952,0.00619452,37897.0,37876.0,0.50609442]
[1643812453151,0.00521825,37889.0,37877.0,0.224689]
[1643812453451,0.00521825,37889.0,37878.0,0.32549542]
[1643812453452,0.02028911,37889.0,37878.0,0.32549542]
[1643812453657,0.30802914,37896.0,37880.0,0.8]
[1643812453852,0.00657181,37904.0,37881.0,0.55015742]
[1643812454050,0.00065663,37903.0,37888.0,0.02028911]
[1643812454251,0.46065663,37905.0,37889.0,0.0441]
[1643812454450,0.46065663,37905.0,37890.0,0.28139542]
[1643812454651,0.46065663,37905.0,37891.0,0.0441]
[1643812454851,0.24342628,37900.0,37891.0,0.0441]
[1643812455057,0.46065663,37905.0,37891.0,0.0441]
[1643812455251,0.46065663,37905.0,37860.0,0.08242]
[1643812455252,5.10903829,37866.0,37860.0,0.08242]
[1643812455553,2.64180302,37866.0,37865.0,1.14365818]
[1643812455799,0.02028911,37889.0,37867.0,0.02598]
[1643812455999,0.02028911,37889.0,37868.0,0.268856]
[1643812456000,0.28034612,37883.0,37868.0,0.268856]
[1643812456212,0.28034612,37883.0,37869.0,0.224754]
[1643812456401,0.28139542,37882.0,37869.0,0.224754]
[1643812456603,0.27639542,37882.0,37864.0,0.14906404]
[1643812456804,0.8,37880.0,37849.0,0.0013]
[1643812457001,0.38380385,37865.0,37862.0,8.333e-05]
[1643812457204,0.3129253,37864.0,37862.0,8.333e-05]
[1643812457402,0.8,37863.0,37862.0,8.333e-05]
[1643812457602,0.350425,37863.0,37847.0,0.0011]
[1643812457803,0.25511628,37875.0,37847.0,0.0011]
[1643812458014,0.02758184,37885.0,37847.0,0.0011]
[1643812458015,0.00551381,37881.0,37847.0,0.0011]
[1643812458206,0.25,37883.0,37847.0,0.0011]
[1643812458207,0.25,37883.0,37850.0,0.06599]
[1643812458501,0.21335959,37889.0,37851.0,0.59310942]
[1643812458502,0.00608911,37889.0,37851.0,0.59310942]
[1643812458706,0.00608911,37889.0,37837.0,1.02762]
[1643812458707,0.8,37875.0,37837.0,1.02762]
[1643812458923,0.8,37875.0,37803.0,1.42]
[1643812458924,0.013,37864.0,37803.0,1.42]
[1643812459117,0.2497687,37842.0,37805.0,0.19971029]
[1643812459308,0.013,37847.0,37777.0,0.15]
[1643812459309,0.2497687,37834.0,37813.0,0.27647817]
[1643812459564,0.8,37850.0,37813.0,0.27647817]
[1643812459565,0.32549542,37833.0,37813.0,0.27647817]
[1643812459765,0.22561761,37822.0,37813.0,0.45011727]
[1643812459962,0.22561761,37822.0,37804.0,0.40533759]
[1643812459963,0.0441,37825.0,37816.0,0.09623302]
[1643812460161,0.0079772,37842.0,37816.0,0.0960611]
[1643812460162,0.0441,37832.0,37816.0,0.0960611]
[1643812460364,0.28139542,37841.0,37828.0,0.03483923]
[1643812460585,0.0520772,37842.0,37831.0,0.04166]
[1643812460761,0.0441,37842.0,37840.0,0.04647]
[1643812460964,0.2497687,37849.0,37843.0,0.04795]
[1643812461175,0.0441,37856.0,37854.0,0.02964]
[1643812461369,0.01,37859.0,37852.0,0.03594228]
[1643812461562,0.01,37859.0,37853.0,0.03491]
[1643812461563,0.2497687,37858.0,37853.0,0.03491]
[1643812461760,0.2497687,37858.0,37843.0,0.04795]
[1643812461761,0.26319642,37867.0,37859.0,0.03761755]
[1643812461963,0.0441,37873.0,37865.0,0.03263]
[1643812462165,0.00585831,37885.0,37866.0,0.26739414]
[1643812462166,0.2497687,37881.0,37866.0,0.26739414]
[1643812462368,0.4,37886.0,37868.0,0.04845414]
[1643812462369,0.6497687,37886.0,37868.0,0.04845414]
[1643812462562,0.6497687,37886.0,37874.0,0.0464]
[1643812462763,0.6497687,37886.0,37869.0,0.28139542]
[1643812462764,0.2497687,37881.0,37875.0,0.0489781]
[1643812463064,0.2497687,37876.0,37867.0,2.38e-06]
[1643812463298,0.4,37886.0,37866.0,0.32567994]
[1643812463496,0.4,37886.0,37868.0,0.03901936]
[1643812463701,0.10014,37886.0,37873.0,0.09609949]
[1643812463900,0.00025844,37892.0,37870.0,0.1]
[1643812463901,0.2497687,37904.0,37886.0,0.04456587]
[1643812464095,0.2497687,37904.0,37877.0,0.10183277]
[1643812464096,0.05577413,37886.0,37877.0,0.10183277]
[1643812464295,0.10014,37888.0,37879.0,0.09810875]
[1643812464495,0.57671055,37904.0,37881.0,0.13230473]
[1643812464496,0.26079,37885.0,37881.0,0.13230473]
[1643812464696,0.26079,37885.0,37883.0,0.2398]
[1643812464899,1.0497687,37884.0,37883.0,0.28235393]
[1643812465099,1.3105587,37884.0,37879.0,0.03607628]
[1643812465293,0.07953641,37881.0,37880.0,0.04864439]
[1643812465494,0.07953641,37881.0,37875.0,8.324e-05]
[1643812465495,0.611242,37881.0,37875.0,8.324e-05]
[1643812465796,0.26079,37880.0,37871.0,0.03809013]
[1643812465998,0.2497687,37891.0,37872.0,0.0441]
[1643812466198,0.26079,37890.0,37872.0,0.09172433]
[1643812466400,0.26079,37890.0,37870.0,0.01985651]
[1643812466401,0.2497687,37881.0,37873.0,0.03422254]
[1643812466596,0.2497687,37876.0,37874.0,0.03762753]
[1643812467011,0.2497687,37880.0,37870.0,0.00664471]
[1643812467201,0.26079,37879.0,37871.0,8.315e-05]
[1643812467401,0.26079,37879.0,37876.0,0.28369946]
[1643812467802,0.27914947,37904.0,37877.0,0.35]
[1643812468012,0.56668379,37905.0,37876.0,0.28369946]
[1643812468013,0.2497687,37901.0,37878.0,0.28139542]
[1643812468204,0.2497687,37901.0,37883.0,0.33813551]
[1643812468205,0.26079,37900.0,37883.0,0.33813551]
[1643812468403,0.26079,37900.0,37884.0,0.32549542]
[1643812468404,0.2247687,37897.0,37884.0,0.32549542]
[1643812468607,0.26079,37896.0,37895.0,0.29371891]
[1643812468907,0.51380458,37884.0,37882.0,0.09989929]
[1643812469102,0.84246429,37884.0,37883.0,0.38531053]
[1643812469306,0.46065663,37905.0,37890.0,0.10318113]
[1643812469307,0.61086663,37905.0,37890.0,0.10318113]
[1643812469505,9.2247687,37916.0,37892.0,0.01352934]
[1643812469713,0.05,37903.0,37889.0,0.00727992]
[1643812469908,0.08335879,37894.0,37891.0,8.311e-05]
[1643812470105,0.24849481,37887.0,37871.0,8.311e-05]
[1643812470307,0.28139542,37886.0,37871.0,8.311e-05]
[1643812470507,0.28139542,37892.0,37878.0,0.20203969]
[1643812470707,0.27639542,37898.0,37878.0,0.20203969]
[1643812470944,0.42,37898.0,37878.0,0.20203969]
[1643812471109,0.42,37898.0,37881.0,0.09474987]
[1643812471309,0.28139542,37897.0,37883.0,0.1]
[1643812471518,0.42,37898.0,37883.0,0.10540831]
[1643812471710,0.42,37898.0,37893.0,0.24365683]
[1643812471910,0.42,37898.0,37894.0,0.10473095]
[1643812472110,0.42,37898.0,37885.0,0.09292463]
[1643812472311,0.26079,37903.0,37895.0,0.1]
[1643812472515,0.2397445,37909.0,37894.0,0.00013122]
[1643812472516,0.0913262,37901.0,37894.0,0.00013122]
[1643812472729,0.28139542,37902.0,37888.0,0.00045617]
[1643812472730,0.09146489,37890.0,37888.0,0.00045617]
[1643812472910,0.09146489,37890.0,37888.0,0.00025617]
[1643812473111,0.00741403,37903.0,37888.0,0.00025617]
[1643812473326,0.28139542,37912.0,37888.0,0.00025617]
[1643812473512,0.28139542,37912.0,37884.0,0.0441]
[1643812473513,0.045,37905.0,37884.0,0.05187797]
[1643812473719,0.25695373,37904.0,37887.0,0.10438831]
[1643812473912,0.05,37909.0,37888.0,0.28838086]
[1643812474118,0.24287179,37901.0,37886.0,0.23422649]
[1643812474315,0.28139542,37906.0,37886.0,0.23402649]
[1643812474558,0.22007114,37910.0,37888.0,0.00655825]
[1643812474559,0.28139542,37909.0,37888.0,0.00655825]
[1643812474758,0.02007114,37910.0,37888.0,0.00655825]
[1643812474759,0.02007114,37910.0,37901.0,0.005]
[1643812474955,9.37245438,37916.0,37902.0,0.0441]
[1643812475154,9.37245438,37916.0,37905.0,0.005]
[1643812475355,8.95245438,37916.0,37907.0,0.25656721]
[1643812475556,8.80845438,37916.0,37915.0,0.005]
[1643812475754,6.88155438,37916.0,37913.0,0.1048]
[1643812475956,6.68155438,37916.0,37913.0,0.1]
[1643812476155,6.28627638,37916.0,37912.0,0.0439]
[1643812476356,5.28657638,37916.0,37913.0,0.10347644]
[1643812476555,4.71737638,37916.0,37914.0,0.53072571]
[1643812476759,2.69999838,37916.0,37914.0,0.30953716]
[1643812476954,2.69999838,37916.0,37915.0,0.1008425]
[1643812477157,2.69999838,37916.0,37914.0,0.30933716]
[1643812477356,2.69999838,37916.0,37915.0,0.0998]
[1643812477556,2.69999838,37916.0,37915.0,1.30582785]
[1643812477557,1.90458834,37916.0,37915.0,1.30582785]
[1643812477757,0.00263339,37923.0,37917.0,0.8]
[1643812477958,3.0753,37940.0,37917.0,0.8]
[1643812477959,0.28139542,37939.0,37921.0,0.4]
[1643812478205,0.0871063,37936.0,37927.0,0.4]
[1643812478409,0.28139542,37935.0,37922.0,0.00537363]
[1643812478608,0.37659542,37935.0,37918.0,0.0439]
[1643812478803,0.10014,37934.0,37918.0,0.0439]
[1643812479006,1.7054,37918.0,37916.0,0.61236338]
[1643812479208,1.7054,37918.0,37917.0,0.4441]
[1643812479411,1.7054,37918.0,37917.0,0.0439]
[1643812479608,1.6554,37918.0,37917.0,0.0439]
[1643812479807,1.6454,37918.0,37917.0,0.0437]
[1643812480007,1.07681689,37912.0,37910.0,0.01945352]
[1643812480217,0.28139542,37916.0,37907.0,0.0441]
[1643812480408,0.8893,37917.0,37903.0,7.853e-05]
[1643812480409,1.17069542,37917.0,37903.0,7.853e-05]
[1643812480607,1.17069542,37917.0,37904.0,0.0441]
[1643812480608,0.01933204,37911.0,37904.0,0.0441]
[1643812480808,0.01933204,37911.0,37906.0,0.3998]
[1643812481111,0.01933204,37911.0,37907.0,0.0439]
[1643812481306,0.01933204,37911.0,37907.0,0.0441]
[1643812481506,0.01933204,37911.0,37904.0,0.29940705]
[1643812481708,1.72913204,37912.0,37904.0,0.29920705]
[1643812481975,0.8893,37913.0,37901.0,0.00087853]
[1643812482169,0.8893,37913.0,37910.0,0.01933204]
[1643812482370,0.8893,37913.0,37910.0,0.01913204]
[1643812482569,0.8893,37913.0,37910.0,0.01893204]
[1643812482768,0.0452,37911.0,37910.0,0.01893204]
[1643812482968,0.8893,37913.0,37910.0,0.01893204]
[1643812482969,0.8893,37913.0,37910.0,0.01873204]
[1643812483169,0.8893,37913.0,37910.0,0.01853204]
[1643812483573,0.65722564,37913.0,37911.0,0.2794138]
[1643812483776,0.00065935,37925.0,37912.0,0.28139542]
[1643812483971,0.00263676,37934.0,37912.0,0.06488]
[1643812484170,0.01,37949.0,37924.0,0.013]
[1643812484373,45.65301142,37950.0,37939.0,0.1]
[1643812484374,45.46616076,37950.0,37939.0,0.1]
[1643812484580,45.46616076,37950.0,37947.0,0.4]
[1643812484581,43.97213676,37950.0,37947.0,0.4]
[1643812484771,43.97213676,37950.0,37946.0,0.02807]
[1643812484772,36.99598161,37950.0,37948.0,0.4]
[1643812484968,36.99598161,37950.0,37949.0,0.8441]
[1643812484969,28.62940215,37950.0,37949.0,0.8441]
[1643812485170,14.23954927,37950.0,37949.0,0.87529542]
[1643812485371,10.53972951,37950.0,37949.0,0.2939]
[1643812485569,7.57122951,37950.0,37949.0,0.43855724]
[1643812485803,6.39450451,37950.0,37949.0,0.0437]
[1643812485999,6.66536617,37950.0,37949.0,0.0433]
[1643812486199,6.39450451,37950.0,37949.0,0.0433]
[1643812486401,6.38450451,37950.0,37949.0,0.0431]
[1643812486803,6.38450451,37950.0,37949.0,0.0429]
[1643812487000,5.98961651,37950.0,37949.0,0.0429]
[1643812487206,6.32747497,37950.0,37949.0,0.0427]
[1643812487404,0.8,37949.0,37937.0,0.02146285]
[1643812487603,0.0452,37940.0,37939.0,0.10669105]
[1643812487906,0.0452,37940.0,37922.0,0.5]
[1643812487907,0.10227353,37939.0,37922.0,0.09912237]
[1643812488103,0.10227353,37939.0,37913.0,0.059]
[1643812488104,0.08623154,37922.0,37913.0,0.059]
[1643812488300,0.05,37916.0,37915.0,0.98764171]
[1643812488505,0.34361194,37917.0,37913.0,0.059]
[1643812488701,0.0432,37921.0,37913.0,0.0588]
[1643812488904,0.0432,37929.0,37913.0,0.0588]
[1643812489102,0.2432,37932.0,37916.0,0.10305646]
[1643812489305,0.30285542,37938.0,37916.0,0.10305646]
[1643812489306,0.0432,37921.0,37917.0,0.03449147]
[1643812489569,0.0432,37920.0,37918.0,0.0331136]
[1643812489759,0.0432,37920.0,37909.0,0.001]
[1643812489760,0.2932,37914.0,37909.0,0.001]
[1643812489956,0.2932,37914.0,37901.0,0.01087853]
[1643812489957,0.24639455,37913.0,37904.0,0.03760117]
[1643812490156,0.24639455,37913.0,37902.0,0.09220371]
[1643812490157,1.08139542,37919.0,37905.0,0.14316758]
[1643812490355,1.08139542,37919.0,37906.0,0.0396374]
[1643812490558,1.08139542,37919.0,37904.0,0.03760117]
[1643812490559,0.0432,37907.0,37904.0,0.03760117]
[1643812490756,0.0432,37905.0,37901.0,0.01087853]
[1643812490954,0.0432,37905.0,37902.0,0.04545982]
[1643812491154,0.0432,37914.0,37901.0,0.01087853]
[1643812491357,0.4859,37940.0,37904.0,0.10313798]
[1643812491358,0.0432,37921.0,37904.0,0.10313798]
[1643812491554,0.0432,37921.0,37901.0,0.01087853]
[1643812491555,0.0932,37921.0,37905.0,0.13126406]
[1643812491857,0.0432,37911.0,37907.0,0.03821222]
[1643812492054,0.2,37915.0,37907.0,0.03821222]
[1643812492055,0.05,37915.0,37911.0,0.00045811]
[1643812492289,0.0432,37913.0,37911.0,0.00025811]
[1643812492657,0.0432,37913.0,37911.0,0.04947567]
[1643812492658,0.21648522,37912.0,37911.0,0.04947567]
[1643812492864,0.21648522,37912.0,37901.0,0.10704401]
[1643812492865,0.24490455,37909.0,37902.0,0.28125353]
[1643812493057,0.24490455,37909.0,37903.0,0.03304326]
[1643812493303,0.28139542,37917.0,37904.0,0.04774324]
[1643812493504,0.41668975,37923.0,37905.0,0.04937595]
[1643812493702,0.0432,37921.0,37906.0,0.66219777]
[1643812493908,2.41503257,37927.0,37908.0,0.10241099]
[1643812494107,0.8459918,37907.0,37904.0,0.0068]
[1643812494305,0.0432,37935.0,37907.0,0.03385]
[1643812494510,0.25202654,37920.0,37916.0,0.10423313]
[1643812494704,0.25202654,37920.0,37907.0,0.36283]
[1643812494705,0.0434,37918.0,37909.0,0.10433603]
[1643812494915,0.32382973,37925.0,37907.0,0.5638]
[1643812494916,0.2,37935.0,37916.0,0.03326831]
[1643812495207,0.2,37935.0,37910.0,0.09657282]
[1643812495208,0.0434,37932.0,37919.0,0.1]
[1643812495402,0.0434,37932.0,37920.0,0.04937117]
[1643812495603,0.0384,37932.0,37920.0,0.04917117]
[1643812495804,0.29146183,37928.0,37921.0,0.09749505]
[1643812496005,0.27688712,37929.0,37919.0,0.1]
[1643812496205,0.42,37935.0,37923.0,0.13432507]
[1643812496412,1.7643,37937.0,37925.0,0.0116]
[1643812496608,1.7643,37937.0,37925.0,0.6005323]
[1643812496804,1.7643,37937.0,37927.0,0.09245893]
[1643812497058,1.7643,37937.0,37920.0,0.00521785]
[1643812497059,0.0384,37929.0,37928.0,0.04104232]
[1643812497257,0.14146215,37929.0,37918.0,0.42705554]
[1643812497462,0.0384,37932.0,37913.0,0.00756302]
[1643812497655,0.0384,37932.0,37918.0,0.00396]
[1643812497858,0.05066094,37933.0,37921.0,0.04184219]
[1643812497859,0.00066094,37933.0,37921.0,0.04184219]
[1643812498058,1.7643,37937.0,37922.0,0.03586144]
[1643812498259,0.20725116,37935.0,37926.0,0.04608604]
[1643812498459,0.00066095,37927.0,37923.0,0.05156383]
[1643812498657,0.00264343,37933.0,37924.0,0.55593907]
[1643812498858,0.00264343,37933.0,37931.0,0.03869965]
[1643812499067,2.56913108,37950.0,37932.0,0.5]
[1643812499265,0.58582475,37952.0,37946.0,0.1]
[1643812499463,2.5683,37968.0,37946.0,0.1]
[1643812499464,0.30945505,37963.0,37953.0,0.0116]
[1643812499660,2.5683,37968.0,37954.0,0.0441]
[1643812499661,0.67459831,37967.0,37954.0,0.0441]
[1643812499858,0.67459831,37967.0,37961.0,0.09985578]
[1643812499859,2.62943831,37967.0,37961.0,0.09985578]
[1643812500063,2.67943831,37967.0,37961.0,0.09985578]
[1643812500261,2.67943831,37967.0,37962.0,0.03618511]
[1643812500262,0.10060088,37964.0,37962.0,0.03618511]
[1643812500467,0.10060088,37964.0,37949.0,0.00637846]
[1643812500468,0.49289944,37964.0,37957.0,0.09215672]
[1643812500714,0.0384,37949.0,37942.0,0.44618723]
[1643812500913,0.24602703,37948.0,37942.0,0.44618723]
[1643812501118,0.0884,37949.0,37933.0,0.01355361]
[1643812501312,0.2,37952.0,37939.0,0.065846]
[1643812501516,0.2,37952.0,37944.0,0.2755618]
[1643812501517,0.24079437,37952.0,37944.0,0.2755618]
[1643812501911,0.24079437,37952.0,37946.0,0.09344348]
[1643812502111,0.00066198,37950.0,37944.0,0.17199999]
[1643812502311,0.00264752,37956.0,37945.0,0.365827]
[1643812502511,0.00264752,37956.0,37946.0,0.10524995]
[1643812502724,0.00264752,37956.0,37947.0,0.0914206]
[1643812502911,0.42705554,37963.0,37948.0,0.00500466]
[1643812503217,0.14521,37963.0,37959.0,0.4]
[1643812503413,1.412399,37961.0,37960.0,0.00617174]
[1643812503613,0.0783146,37956.0,37952.0,0.1]
[1643812503811,2.43652984,37967.0,37948.0,0.49581889]
[1643812503812,2.39312984,37967.0,37948.0,0.49581889]
[1643812504025,2.39312984,37967.0,37952.0,0.4]
[1643812504214,2.39312984,37967.0,37951.0,0.42705554]
[1643812504215,2.807599,37952.0,37951.0,0.42705554]
[1643812504451,2.48326984,37967.0,37957.0,0.09735051]
[1643812504650,0.04142665,37965.0,37958.0,0.09918675]
[1643812504871,0.0384,37966.0,37953.0,0.065821]
[1643812504872,0.0384,37955.0,37953.0,0.065821]
[1643812505050,0.92705554,37958.0,37950.0,0.09]
[1643812505355,0.21895123,37955.0,37948.0,0.3]
[1643812505963,0.01634583,37952.0,37948.0,0.3]
[1643812506151,0.21895123,37955.0,37948.0,0.3]
[1643812506548,0.21895123,37955.0,37947.0,0.065834]
[1643812506748,0.21806123,37955.0,37950.0,0.00047756]
[1643812507250,0.00066236,37958.0,37950.0,0.00047756]
[1643812507450,0.21634583,37963.0,37951.0,0.22783159]
[1643812507451,0.4226871,37962.0,37951.0,0.22783159]
[1643812507652,0.4226871,37962.0,37951.0,0.131638]
[1643812507653,0.01634583,37958.0,37951.0,0.131638]
[1643812507850,0.4226871,37959.0,37951.0,0.131638]
[1643812508053,0.25017299,37955.0,37951.0,0.131638]
[1643812508507,0.4226871,37959.0,37951.0,0.431638]
[1643812508702,0.0381648,37960.0,37952.0,0.1]
[1643812509302,0.4226871,37962.0,37954.0,0.065818]
[1643812509501,0.21313341,37962.0,37954.0,0.065818]
[1643812509902,0.0381648,37959.0,37954.0,0.065818]
[1643812510502,0.22382716,37963.0,37954.0,0.065818]
[1643812510708,0.4226871,37962.0,37955.0,0.04213321]
[1643812510904,0.26324941,37964.0,37955.0,0.04213321]
[1643812511106,2.39289481,37967.0,37957.0,0.09880643]
[1643812511303,2.39289481,37967.0,37958.0,0.17986525]
[1643812511510,0.29358314,37963.0,37959.0,0.18545161]
[1643812511704,1.99817981,37967.0,37960.0,0.04547118]
[1643812511952,1.99817981,37967.0,37956.0,0.1]
[1643812511953,1.60408873,37967.0,37963.0,0.25]
[1643812512163,1.60408873,37967.0,37964.0,0.03303715]
[1643812512348,1.60408873,37967.0,37965.0,0.03577542]
[1643812512552,1.20933673,37967.0,37963.0,0.1]
[1643812512753,1.20933673,37967.0,37965.0,0.05]
[1643812512951,0.81464673,37967.0,37966.0,0.101729]
[1643812513151,0.81464673,37967.0,37965.0,0.05]
[1643812513152,0.77634673,37967.0,37965.0,0.05]
[1643812513358,2.0,37972.0,37966.0,0.1]
[1643812513551,0.82550117,37967.0,37966.0,0.43369394]
[1643812513750,0.8100604,37967.0,37966.0,0.53369394]
[1643812513955,1.203588,37972.0,37967.0,0.10032213]
[1643812514254,1.203588,37972.0,37971.0,0.68365417]
[1643812514452,0.04759293,37972.0,37971.0,1.30044127]
[1643812514651,3.03796885,37975.0,37974.0,0.03365417]
[1643812514852,1.82446885,37975.0,37974.0,0.85044127]
[1643812515054,0.01634583,38008.0,37999.0,0.065738]
[1643812515256,0.01,38009.0,37999.0,0.065738]
[1643812515453,0.08475278,38002.0,38000.0,0.43481858]
[1643812515705,0.03315142,38000.0,37998.0,0.050008]
[1643812515908,0.03315142,38000.0,37998.0,8e-06]
[1643812516107,0.01634583,37999.0,37998.0,8e-06]
[1643812516705,0.03315142,38000.0,37998.0,8e-06]
[1643812517303,0.01634583,37999.0,37990.0,0.5]
[1643812517504,0.36935038,37998.0,37990.0,0.5]
[1643812517706,0.20707281,37995.0,37990.0,0.59308791]
[1643812517906,0.36935038,37998.0,37990.0,0.89308791]
[1643812518209,0.8782,38000.0,37994.0,0.4]
[1643812518404,0.00051987,38001.0,37997.0,0.05]
[1643812518611,0.00051987,38001.0,37997.0,0.08365417]
[1643812518804,0.30827,38003.0,38000.0,0.02]
[1643812519004,0.30827,38003.0,37998.0,0.0441]
[1643812519005,0.00051987,38001.0,37998.0,0.0941]
[1643812519478,0.00207916,38007.0,38002.0,0.03365417]
[1643812519665,0.00207916,38007.0,38006.0,0.5]
[1643812519867,1.23967216,38027.0,38006.0,0.5]
[1643812519868,0.14343216,38020.0,38006.0,0.7441]
[1643812520264,0.22760838,38016.0,38009.0,0.013]
[1643812520464,0.22760838,38016.0,38009.0,0.0571]
[1643812520465,0.4226871,38015.0,38009.0,0.0571]
[1643812520667,0.4226871,38019.0,38012.0,0.15]
[1643812520865,0.03,38016.0,38012.0,0.2]
[1643812521070,0.4526871,38016.0,38012.0,0.05]
[1643812521271,0.04134583,38015.0,38009.0,0.5]
[1643812521464,0.14343216,38020.0,38009.0,0.5]
[1643812521465,0.04134583,38017.0,38009.0,0.55]
[1643812521668,0.00066645,38016.0,38010.0,0.6021198]
[1643812521868,0.00066645,38016.0,38009.0,0.55]
[1643812521869,0.2481803,38015.0,38009.0,0.5]
[1643812522066,0.2481803,38015.0,38005.0,0.00049824]
[1643812522067,0.08633387,38011.0,38005.0,0.00049824]
[1643812522268,0.26045215,38009.0,38005.0,0.00049824]
[1643812522567,0.91862413,38003.0,38002.0,0.01965463]
[1643812522967,1.19958405,38003.0,38002.0,0.01965463]
[1643812523207,1.19958405,38003.0,37986.0,0.0013]
[1643812523208,1.09698685,38003.0,38001.0,0.04401282]
[1643812523407,1.09698685,38003.0,37980.0,2.52248967]
[1643812523408,0.39995364,38002.0,37985.0,0.04447502]
[1643812523608,0.01602693,37992.0,37980.0,2.37248967]
[1643812523813,0.025,37993.0,37980.0,2.37895711]
[1643812524010,0.01602693,37994.0,37981.0,0.0050718]
[1643812524310,0.01602693,37995.0,37990.0,0.04135963]
[1643812524532,0.01602693,37995.0,37984.0,0.10121105]
[1643812524711,0.01965,38003.0,37992.0,0.09490085]
[1643812524915,0.01965,38003.0,37992.0,0.3]
[1643812525110,0.01965,38003.0,37992.0,0.35]
[1643812525309,0.01965,38003.0,37995.0,0.03495758]
[1643812525509,0.04102693,38000.0,37997.0,0.04481951]
[1643812525710,0.09773696,37998.0,37994.0,0.05]
[1643812525912,0.6,37997.0,37995.0,0.04087976]
[1643812526112,0.6,37997.0,37993.0,0.14]
[1643812526113,0.025,37997.0,37993.0,0.14]
[1643812526315,0.09773696,37998.0,37994.0,0.03472167]
[1643812526316,0.01602693,37996.0,37994.0,0.03472167]
[1643812526512,0.03102693,37996.0,37994.0,0.24049763]
[1643812526712,0.09773696,37998.0,37995.0,0.03682747]
[1643812526955,0.22061552,37998.0,37997.0,0.04144978]
[1643812527150,0.23561552,37998.0,37997.0,4.978e-05]
[1643812527348,0.01602693,37995.0,37987.0,0.5]
[1643812527646,0.27804904,37991.0,37988.0,0.04687816]
[1643812527846,0.1051425,37989.0,37988.0,0.04687816]
[1643812528047,0.015,37989.0,37988.0,0.04687816]
[1643812528249,0.01476505,37989.0,37982.0,0.43910078]
[1643812528449,0.01476505,37989.0,37983.0,0.5]
[1643812528648,0.4003488,38019.0,37983.0,0.5]
[1643812528851,0.2614766,37997.0,37984.0,0.49659464]
[1643812529047,0.07883792,37994.0,37984.0,0.06476505]
[1643812529247,0.2614766,37997.0,37984.0,0.48510645]
[1643812529447,0.2614766,37997.0,37984.0,0.4203414]
[1643812529646,0.2614766,37997.0,37989.0,0.03928169]
[1643812529847,0.19739496,37990.0,37989.0,0.03928169]
[1643812530048,0.5,37984.0,37977.0,0.4]
[1643812530248,0.57344891,37994.0,37978.0,0.0440425]
[1643812530450,0.37008658,37997.0,37979.0,0.5]
[1643812530698,0.35821079,37997.0,37980.0,0.04494808]
[1643812530899,0.25554583,37990.0,37983.0,0.03947988]
[1643812531098,0.35059655,37997.0,37980.0,0.09453031]
[1643812531299,0.38698548,37996.0,37987.0,0.00049828]
[1643812531702,0.38698548,37996.0,37965.0,0.00635195]
[1643812531703,0.8441,37995.0,37965.0,0.00635195]
[1643812531904,0.05,37983.0,37970.0,0.001]
[1643812532099,0.05,37983.0,37967.0,3.36578]
[1643812532100,0.25415018,37981.0,37967.0,3.36578]
[1643812532302,0.24232846,37975.0,37967.0,3.36578]
[1643812532500,0.43059122,37968.0,37967.0,3.36578]
[1643812532700,0.35,37968.0,37967.0,3.36578]
[1643812532907,0.38698548,37976.0,37967.0,3.36078]
[1643812533102,2.34832625,37996.0,37969.0,0.06476505]
[1643812533300,2.34832625,37996.0,37970.0,0.38698548]
[1643812533301,0.0441,37988.0,37970.0,0.38698548]
[1643812533503,0.2508523,37973.0,37967.0,3.36078]
[1643812533702,0.09197053,37973.0,37967.0,3.36078]
[1643812533901,0.24066556,37974.0,37967.0,3.36078]
[1643812534104,0.0441,37988.0,37967.0,3.36078]
[1643812534105,0.29928019,37984.0,37967.0,3.36078]
[1643812534302,0.29928019,37984.0,37967.0,3.41078]
[1643812534552,0.20343199,37977.0,37967.0,3.41078]
[1643812534752,0.0441,37988.0,37969.0,0.06476505]
[1643812534956,0.08505281,37985.0,37969.0,0.06476505]
[1643812535153,0.29482668,37985.0,37970.0,0.38698548]
[1643812535350,0.29482668,37985.0,37971.0,0.1]
[1643812535550,0.0441,37995.0,37972.0,0.38698548]
[1643812535551,0.38481255,37994.0,37972.0,0.38698548]
[1643812535851,0.38481255,37994.0,37968.0,0.1]
[1643812535852,0.25708439,37977.0,37973.0,0.1]
[1643812536050,0.25708439,37977.0,37969.0,0.05]
[1643812536250,0.38698548,37984.0,37968.0,0.1]